fUSD/lending_fUSD_20240427
["ID","MTS","AMOUNT","RATE_DAILY","PERIOD"]
[323753117,1714240233086,-286.89,9.963e-05,2]
[323753118,1714240233095,-150.0,9.999e-05,2]
[323753119,1714240233105,-135.00149338,9.999e-05,2]
[323753120,1714240233117,-586.43850662,9.999e-05,2]
[323753121,1714240233126,-3167.18827739,0.0001,2]
[323753122,1714240233136,-323.99205487,0.0001003,2]
[323753123,1714240233146,-5917.56,0.00010031,2]
[323753124,1714240233155,-150.0,0.00010055,2]
[323753125,1714240233165,-1323.19,0.00010055,4]
[323753126,1714240233174,-23890.0,0.00010086,2]
[323753127,1714240233183,-159.41,0.00010238,2]
[323753128,1714240233193,-6871.15,0.0001028,2]
[323753129,1714240233203,-165.12,0.00010399,2]
[323753130,1714240233212,-327.07,0.00010466,2]
[323753131,1714240233222,-801.21,0.00010498,2]
[323753132,1714240233231,-3533.81,0.00010498,2]
[323753133,1714240233241,-669.0129911,0.00010542,2]
[323753134,1714240233250,-186.02,0.00010544,2]
[323753135,1714240233259,-499.99,0.00010544,2]
[323753136,1714240233268,-77379.99,0.00010544,2]
[323753137,1714240233278,-179.73027073,0.0001063,2]
[323753138,1714240233287,-256.11,0.00010634,2]
[323753139,1714240233298,-150.99,0.00010879,2]
[323753140,1714240233308,-155.0,0.000109,2]
[323753141,1714240233316,-165.13,0.00010957,2]
[323753142,1714240233325,-210.0,0.00010999,2]
[323753143,1714240233335,-2565.06733759,0.00011,2]
[323753144,1714240233345,-2750.0,0.00011,3]
[323753145,1714240233354,-5292.53507396,0.00011044,2]
[323753146,1714240233363,-286.89,0.00011209,2]
[323753147,1714240233372,-9467.73832695,0.00011699,2]
[323753149,1714240233382,-33622.6929,0.000117,2]
[323753151,1714240233390,-5559.0173,0.00011797,2]
[323753152,1714240233400,-44294.60116261,0.000118,2]
[323753153,1714240233409,-500.0,0.00011804,2]
[323753154,1714240233419,-801.21,0.0001181,2]
[323753155,1714240233429,-1000.0,0.00011837,2]
[323753156,1714240233439,-500.0,0.00011837,2]
[323753157,1714240233449,-150.0,0.0001185,2]
[323753158,1714240233458,-150.0,0.0001188,2]
[323753159,1714240233468,-1298.5276,0.00011891,2]
[323753160,1714240233477,-163.05744581,0.00011898,2]
[323753162,1714240233488,-168.26224942,0.00011898,2]
[323753163,1714240233498,-190.66798989,0.00011898,2]
[323753164,1714240233507,-310.85571836,0.00011898,2]
[323753165,1714240233516,-2118.88925846,0.00011898,2]
[323753166,1714240233525,-232.2571624,0.000119,2]
[323753167,1714240233535,-1000.0,0.000119,2]
[323753168,1714240233545,-19973.1606823,0.000119,2]
[323753169,1714240233557,-771.0,0.000119,2]
[323753170,1714240233567,-2151.71645208,0.000119,2]
[323753171,1714240233579,-2199.29429704,0.000119,2]
[323753172,1714240233589,-1000.0,0.000119,2]
[323753173,1714240233598,-596.7497314,0.000119,2]
[323753174,1714240233608,-665.0,0.000119,2]
[323753175,1714240233618,-1000.0,0.00011903,2]
[323753176,1714240233627,-500.0,0.00011903,2]
[323753177,1714240233636,-19973.16068222,0.00011991,2]
[323753178,1714240233646,-8000.0,0.00011995,2]
[323753179,1714240233656,-155.0,0.00011995,2]
[323753180,1714240233666,-3694.94679417,0.00011995,2]
[323753181,1714240233675,-236.47575198,0.00011995,2]
[323753182,1714240233685,-183.2361686,0.00011995,2]
[323753183,1714240233695,-316.9702796,0.00011995,2]
[323753184,1714240233705,-565.06945065,0.00011995,2]
[323753185,1714240233714,-384.1309379,0.00011995,2]
[323753186,1714240233724,-216.42941215,0.00011995,2]
[323753187,1714240233733,-295.6947702,0.00011996,2]
[323753188,1714240233743,-266.33773164,0.00011996,2]
[323753189,1714240233752,-2000.0,0.00011996,2]
[323753190,1714240233761,-187367.15165056,0.00011997,2]
[323753191,1714240233774,-5985.8999,0.00011997,2]
[323753192,1714240233785,-5560.26,0.00011997,2]
[323753193,1714240233798,-78253.1293222,0.00011997,2]
[323753194,1714240233810,-785.77898492,0.00011997,2]
[323753195,1714240233833,-606.77478241,0.00011997,2]
[323753196,1714240233845,-92259.29689489,0.00011997,2]
[323753197,1714240233860,-346.53616094,0.00011997,2]
[323753198,1714240233871,-781.07500526,0.00011997,2]
[323753199,1714240233883,-260.79473481,0.00011997,2]
[323753200,1714240233906,-2750.0,0.00011997,2]
[323753201,1714240234651,-550.0,0.00011997,2]
[323753202,1714240234687,481.82894602,8.219e-05,2]
[323753203,1714240234699,-1421.18809713,0.00011997,2]
[323753204,1714240234710,-306.20467746,0.00011997,2]
[323753205,1714240235044,1471.99909209,8.219e-05,2]
[323753206,1714240235089,943.34796342,8.219e-05,2]
[323753207,1714240235442,188.82067515,8.219e-05,2]
[323753208,1714240236353,173.13094208,8.219e-05,2]
[323753249,1714240238630,-342.73,0.00011498,10]
[323753250,1714240238639,-31.33351889,0.00011997,2]
[323753251,1714240238651,-12351.7,0.00011997,2]
[323753252,1714240238662,-575786.01076868,0.00011997,2]
[323753253,1714240238673,-388.33639583,0.00011997,2]
[323753254,1714240238684,-215475.91043774,0.00011997,2]
[323753255,1714240238729,-298.9533,0.00011997,2]
[323753256,1714240238744,-671.95731408,0.00011997,2]
[323753257,1714240238759,-1486.4935766,0.00011997,2]
[323753258,1714240238784,-5572.08013985,0.00011997,2]
[323753259,1714240238795,-795.50817579,0.00011997,2]
[323753260,1714240238809,-1804.14320826,0.00011997,2]
[323753261,1714240238826,-500.0,0.00011997,2]
[323753262,1714240238836,-793.65006149,0.00011997,2]
[323753264,1714240238856,-820447.89576387,0.00011997,2]
[323753266,1714240238866,-117814.57621795,0.00011998,2]
[323753268,1714240238875,-215.83533507,0.00011998,2]
[323753269,1714240238884,-298.50232026,0.00011998,2]
[323753271,1714240238893,-2215.32753899,0.00011998,2]
[323753273,1714240238902,-710.33944675,0.00011998,2]
[323753274,1714240238910,-207.90792551,0.00011998,2]
[323753276,1714240238920,-155.6899954,0.00011998,2]
[323753277,1714240238930,-155.0,0.00011998,2]
[323753279,1714240238939,-155.0,0.00011998,2]
[323753280,1714240238949,-192.47158963,0.00011998,2]
[323753281,1714240238959,-2356.00491389,0.00011998,2]
[323753282,1714240238968,-1018.59519099,0.00011998,2]
[323753283,1714240238977,-5097.66971521,0.00011998,2]
[323753284,1714240238986,-333.1356497,0.00011998,2]
[323753285,1714240238995,-358.19314831,0.00011998,2]
[323753286,1714240239004,-156.89734001,0.00011998,2]
[323753287,1714240239013,-155.2737892,0.00011998,2]
[323753288,1714240239023,-325.32875202,0.00011998,2]
[323753289,1714240239032,-1469.78007341,0.00011998,2]
[323753290,1714240239042,-413.96155534,0.00011998,2]
[323753291,1714240239051,-155.11657084,0.00011998,2]
[323753292,1714240239062,-155.0,0.00011998,2]
[323753293,1714240239071,-376.75976491,0.00011998,2]
[323753294,1714240239080,-155.24595245,0.00011998,2]
[323753295,1714240239089,-155.0,0.00011998,2]
[323753296,1714240239099,-187.27028764,0.00011998,2]
[323753297,1714240239108,-155.0,0.00011998,2]
[323753298,1714240239117,-155.36158686,0.00011998,2]
[323753299,1714240239127,-155.16352534,0.00011998,2]
[323753300,1714240239139,-2321.4612004,0.00011998,2]
[323753301,1714240239148,-333.63645202,0.00011998,2]
[323753302,1714240239157,-1809.3817027,0.00011998,2]
[323753303,1714240239166,-5836.18871029,0.00011998,2]
[323753304,1714240239175,-2464.01890355,0.00011998,2]
[323753305,1714240239185,-155.0,0.00011998,2]
[323753306,1714240239194,-161.3283795,0.00011998,2]
[323753307,1714240239203,-155.0,0.00011998,2]
[323753308,1714240239213,-155.0,0.00011998,2]
[323753309,1714240239223,-155.18518954,0.00011998,2]
[323753310,1714240239233,-704.26951139,0.00011998,2]
[323753311,1714240239242,-155.0,0.00011998,2]
[323753312,1714240239252,-2465.32484043,0.00011998,2]
[323753313,1714240239261,-210.40439846,0.00011998,2]
[323753314,1714240239270,-1726.1983435,0.00011999,2]
[323753315,1714240239280,-265.53556828,0.00011999,2]
[323753316,1714240239289,-156.09350734,0.00011999,2]
[323753317,1714240239299,-155.0,0.00011999,2]
[323753318,1714240239310,-89439.42557272,0.00012,2]
[323753319,1714240239322,-63304.92410076,0.00012,2]
[323753320,1714240239418,545.95438956,6.575e-05,2]
[323753334,1714240240484,-438768.59654709,0.00012,2]
[323753337,1714240240551,-6382.7,0.00012,2]
[323753338,1714240240612,-3599.25396072,0.00012,2]
[323753339,1714240240624,-190479.69202964,0.00012,2]
[323753340,1714240240636,-32935.320011,0.00012,2]
[323753341,1714240240648,-415.0266194,0.00012,2]
[323753342,1714240240661,-912.34002185,0.00012,2]
[323753343,1714240240695,-573.59537,0.00012,2]
[323753344,1714240240707,-2220.88365722,0.00012,2]
[323753345,1714240240719,-4110.898,0.00012,2]
[323753346,1714240240731,-1868.63663175,0.00012,2]
[323753347,1714240240742,-2563.11763687,0.00012,2]
[323753348,1714240240753,-3864.44952694,0.00012,2]
[323753349,1714240240766,-16089.70694692,0.00012,2]
[323753350,1714240240820,-1554.70179995,0.00012,2]
[323753404,1714240243468,-20968.154045,0.00012,2]
[323753412,1714240243531,-3138.05679187,0.00012,2]
[323753413,1714240243554,-10885.30238,0.00012,2]
[323753414,1714240243593,-441157.14621907,0.00012,2]
[323753415,1714240243605,-1553.75,0.00012,2]
[323753416,1714240243708,-1503.03897622,0.00012,2]
[323753417,1714240243771,-31818.28537367,0.00012,2]
[323753418,1714240243841,-302.09356369,0.00012,2]
[323753425,1714240245362,19684.04039141,8.219e-05,2]
[323753444,1714240246391,-725.57999991,0.000117,2]
[323753452,1714240246452,-997.4085,0.000117,2]
[323753465,1714240246581,-762.146754,0.000117,2]
[323753468,1714240246594,-5014.86474609,0.000117,2]
[323753470,1714240246604,-452.65720078,0.00011999,2]
[323753472,1714240246615,-492.93393963,0.00011999,2]
[323753476,1714240246645,-597.10899928,0.00011999,2]
[323753478,1714240246656,-1108.67125008,0.00011999,2]
[323753480,1714240246669,-1583.9614,0.00011999,2]
[323753482,1714240246683,-2734.71085841,0.00011999,2]
[323753484,1714240246695,-909.18055416,0.00011999,2]
[323753488,1714240246716,-682.36101224,0.00011999,2]
[323753490,1714240246728,-1331.8735148,0.00011999,2]
[323753491,1714240246741,-13331.81315822,0.00011999,2]
[323753492,1714240246750,-684.33553441,0.00011999,2]
[323753493,1714240246759,-427.71563418,0.00011999,2]
[323753494,1714240246770,-5396.96952944,0.00012,2]
[323753495,1714240246785,-604.54,0.00012,2]
[323753497,1714240246961,365.88218524,8.219e-05,2]
[323753498,1714240248223,559.74204524,8.219e-05,2]
[323753499,1714240248597,271.26958166,8.219e-05,2]
[323753500,1714240248885,288.51985909,8.219e-05,2]
[323753501,1714240250450,208.42130484,8.219e-05,2]
[323753502,1714240250626,7501.09882979,8.219e-05,2]
[323753503,1714240252626,1471.99909209,8.219e-05,2]
[323753504,1714240257184,546.03515344,6.575e-05,2]
[323753505,1714240258343,173.13094208,8.219e-05,2]
[323753506,1714240258959,19677.67762419,8.219e-05,2]
[323753507,1714240264198,559.74204524,8.219e-05,2]
[323753510,1714240278366,173.02225772,8.219e-05,2]
[323753511,1714240280317,559.74204524,8.219e-05,2]
[323753512,1714240298777,423.74770729,8.219e-05,2]
[323753513,1714240454697,943.51586166,8.219e-05,2]
[323753514,1714240456490,866.68214589,8.219e-05,2]
[323753515,1714240456980,288.56832451,8.219e-05,2]
[323753516,1714240458276,559.74204524,8.219e-05,2]
[323753517,1714240459782,7502.23409447,8.219e-05,2]
[323753518,1714240460897,173.13094208,8.219e-05,2]
[323753519,1714240460962,314.37375901,8.219e-05,2]
[323753520,1714240461006,19684.04039141,8.219e-05,2]
[323753521,1714240462083,-1995.6221796,9.737e-05,2]
[323753522,1714240462110,-3414.70545517,9.737e-05,2]
[323753523,1714240462135,-4731.13400716,9.737e-05,2]
[323753524,1714240462160,-533.3453203,9.738e-05,2]
[323753525,1714240462184,-1352.14217458,9.738e-05,2]
[323753526,1714240462209,-194.47654533,9.738e-05,2]
[323753527,1714240462234,-953.70124616,9.739e-05,2]
[323753528,1714240462257,-524.19857863,9.739e-05,2]
[323753529,1714240462282,-1675.82584204,9.739e-05,2]
[323753530,1714240462305,-270.587,9.74e-05,2]
[323753531,1714240462330,-320.25027245,9.988e-05,2]
[323753532,1714240462355,-2322.6580486,9.988e-05,2]
[323753533,1714240462380,-200.3869162,9.989e-05,2]
[323753534,1714240462406,-3001.37628927,9.989e-05,2]
[323753535,1714240462431,-1609.11132883,9.989e-05,2]
[323753536,1714240462457,-155.0,9.99e-05,2]
[323753537,1714240462485,-150.0,9.99e-05,2]
[323753538,1714240462511,-150.0,9.99e-05,2]
[323753539,1714240462535,-363.92077602,9.991e-05,2]
[323753540,1714240462559,-155.68785924,9.993e-05,2]
[323753541,1714240462582,-179.73027073,0.0001,2]
[323753542,1714240462606,-3167.18827739,0.0001,2]
[323753543,1714240462632,-323.99205487,0.0001,2]
[323753544,1714240462657,-207.95800123,0.0001,2]
[323753545,1714240462681,-250.0,0.00010075,2]
[323753546,1714240462709,-152.53,0.0001018,2]
[323753547,1714240462741,-760.73,0.00010207,2]
[323753548,1714240462765,-16348.9298,0.00010697,2]
[323753549,1714240462789,-343.49111768,0.00010754,2]
[323753550,1714240462815,-192.83099194,0.00010754,2]
[323753551,1714240462839,-161.58324712,0.00010755,2]
[323753552,1714240462863,-155.0,0.00010755,2]
[323753553,1714240462888,-1245.03725456,0.00010755,2]
[323753554,1714240462911,-2356.43931281,0.00010755,2]
[323753555,1714240462935,-487.5386522,0.00010756,2]
[323753556,1714240462959,-155.0,0.00010756,2]
[323753557,1714240462986,-2216.45947127,0.00010756,2]
[323753558,1714240463010,-1006.31,0.00010758,2]
[323753559,1714240463035,-155.0,0.00010798,2]
[323753560,1714240463061,-165.15,0.0001083,2]
[323753561,1714240463086,-3454.43853573,0.00010897,2]
[323753562,1714240463114,-155.0,0.000109,2]
[323753563,1714240463142,-3876.51,0.000109,2]
[323753564,1714240463169,-1577.88,0.00011001,2]
[323753565,1714240463196,-453.95,0.00011001,2]
[323753566,1714240463227,-150.99,0.00011001,2]
[323753567,1714240463253,-348.96034067,0.00011044,2]
[323753568,1714240463280,-7327.24283222,0.00011194,2]
[323753569,1714240463534,1374.80866039,8.219e-05,2]
[323753570,1714240465219,546.11591732,6.575e-05,2]
[323753571,1714240470662,1472.230329,8.219e-05,2]
[323753572,1714240477922,943.51586166,8.219e-05,2]
[323753573,1714240477970,18239.83724895,8.219e-05,2]
[323753574,1714240477998,1444.20314246,8.219e-05,2]
[323753575,1714240478030,288.56832451,8.219e-05,2]
[323753576,1714240479663,1687.12827459,8.219e-05,2]
[323753577,1714240480214,559.74204524,8.219e-05,2]
[323753578,1714240480491,866.68214589,8.219e-05,2]
[323753579,1714240481204,1374.80866039,8.219e-05,2]
[323753580,1714240482873,173.13094208,8.219e-05,2]
[323753581,1714240485119,517.08,8.719e-05,2]
[323753582,1714240491296,938.4265565,8.219e-05,2]
[323753583,1714240492955,288.56832451,8.219e-05,2]
[323753584,1714240492996,19684.04039141,8.219e-05,2]
[323753585,1714240494667,1472.230329,8.219e-05,2]
[323753586,1714240494702,721.41618642,8.219e-05,2]
[323753587,1714240499329,1374.80866039,8.219e-05,2]
[323753588,1714240500227,559.74204524,8.219e-05,2]
[323753589,1714240500501,866.68214589,8.219e-05,2]
[323753590,1714240500885,217.71508042,8.219e-05,2]
[323753591,1714240504690,238.77,8.38e-05,2]
[323753592,1714240506142,1061.20461407,8.218e-05,2]
[323753593,1714240510928,167.57428485,8.719e-05,2]
[323753594,1714240513004,11359.70805517,8.719e-05,2]
[323753595,1714240518656,218.8351075,8.719e-05,2]
[323753596,1714240522222,559.74204524,8.719e-05,2]
[323753597,1714240524501,866.68214589,8.719e-05,2]
[323753598,1714240527208,1374.80866039,8.719e-05,2]
[323753599,1714240540227,559.74204524,8.719e-05,2]
[323753600,1714240541200,1374.80866039,8.719e-05,2]
[323753601,1714240542485,866.02338719,8.719e-05,2]
[323753602,1714240557200,1374.80866039,8.719e-05,2]
[323753603,1714240562232,559.74204524,8.719e-05,2]
[323753604,1714240575227,1374.80866039,8.719e-05,2]
[323753605,1714240584240,559.74204524,8.719e-05,2]
[323753606,1714240584432,232.11,7.943e-05,2]
[323753607,1714240584650,232.11,8.738e-05,2]
[323753608,1714240595201,957.38044376,8.719e-05,2]
[323753609,1714240602230,559.74204524,8.719e-05,2]
[323753612,1714240618401,243.20049987,8.719e-05,2]
[323753614,1714240734203,-363.38739989,9.317e-05,2]
[323753615,1714240734227,-161.58324712,9.317e-05,2]
[323753616,1714240734250,-155.0,9.317e-05,2]
[323753617,1714240734274,-155.0,9.317e-05,2]
[323753618,1714240734298,-236.84634227,9.317e-05,2]
[323753619,1714240734332,-363.92077602,9.317e-05,2]
[323753620,1714240734359,-155.68785924,9.318e-05,2]
[323753621,1714240734382,-487.5386522,9.318e-05,2]
[323753622,1714240734406,-320.25027245,9.318e-05,2]
[323753623,1714240734431,-1352.14217458,9.318e-05,2]
[323753624,1714240734455,-3082.06843787,9.318e-05,2]
[323753625,1714240734479,-5548.56882649,9.318e-05,2]
[323753626,1714240734504,-3422.51594,9.319e-05,2]
[323753627,1714240734528,-265.59428168,9.365e-05,2]
[323753628,1714240734554,-343.49111768,9.365e-05,2]
[323753629,1714240734578,-155.0,9.365e-05,2]
[323753630,1714240734602,-192.83099194,9.365e-05,2]
[323753631,1714240734625,-238.57368057,9.365e-05,2]
[323753632,1714240739937,314.16,0.0001063,10]
[323753641,1714240996436,656.89,8.219e-05,2]
[323753642,1714241072868,191.01,8.219e-05,2]
[323753643,1714241073092,191.01,8.967e-05,2]
[323753652,1714241234736,154.74,7.388e-05,2]
[323753653,1714241234792,154.74,8.126e-05,2]
[323753654,1714241234964,154.74,8.865e-05,2]
[323753655,1714241240103,320.25027245,7.387e-05,2]
[323753656,1714241240352,194.47654533,7.387e-05,2]
[323753657,1714241241184,524.19857863,7.387e-05,2]
[323753663,1714241348083,287.98,0.0001063,10]
[323753669,1714241431635,-192.83099194,9.056e-05,2]
[323753670,1714241431644,-200.3869162,9.057e-05,2]
[323753671,1714241431654,-1995.6221796,9.057e-05,2]
[323753672,1714241431663,-1245.03725456,9.057e-05,2]
[323753673,1714241431672,-2356.43931281,9.057e-05,2]
[323753674,1714241431681,-4731.13400716,9.057e-05,2]
[323753675,1714241431690,-425.94487473,9.058e-05,2]
[323753676,1714241431705,-1183.1664541,9.058e-05,2]
[323753677,1714241431718,-265.59428168,9.058e-05,2]
[323753678,1714241431727,-1675.82584204,9.058e-05,2]
[323753679,1714241431736,-2196.62475123,9.059e-05,2]
[323753680,1714241431746,-527.20251454,9.059e-05,2]
[323753681,1714241431755,-343.49111768,9.059e-05,2]
[323753682,1714241431765,-3001.37628927,9.059e-05,2]
[323753683,1714241431774,-155.68785924,9.059e-05,2]
[323753684,1714241431783,-643.404235,9.059e-05,2]
[323753685,1714241431792,-1352.14217458,9.059e-05,2]
[323753686,1714241431801,-968.0068632,9.06e-05,2]
[323753687,1714241431810,-359.64228895,9.06e-05,2]
[323753688,1714241431819,-155.0,9.06e-05,2]
[323753689,1714241431828,-329.84437447,9.06e-05,2]
[323753690,1714241431837,-1784.94521655,9.061e-05,2]
[323753691,1714241431846,-2322.6580486,9.061e-05,2]
[323753692,1714241431856,-533.3453203,9.061e-05,2]
[323753693,1714241431865,-3414.70545517,9.062e-05,2]
[323753694,1714241431875,-155.0,9.065e-05,2]
[323753695,1714241431883,-872.00981847,9.066e-05,2]
[323753696,1714241431893,-872.00981847,9.066e-05,2]
[323753698,1714241431905,-872.00981847,9.066e-05,2]
[323753700,1714241431915,-872.00981847,9.066e-05,2]
[323753702,1714241431924,-150.0,9.067e-05,2]
[323753703,1714241431934,-150.0,9.067e-05,2]
[323753705,1714241431948,-4354.09107394,9.193e-05,2]
[323753708,1714241431964,-664.86608892,9.193e-05,2]
[323753710,1714241431976,-383.18110222,9.193e-05,2]
[323753712,1714241431988,-1266.7972655,9.193e-05,2]
[323753717,1714241432103,-499.2998041,9.193e-05,2]
[323753718,1714241432115,-1010.86985441,9.193e-05,2]
[323753719,1714241432137,-9054.667061,9.193e-05,2]
[323753720,1714241432148,-875.59927975,9.193e-05,2]
[323753721,1714241432162,-2860.88092348,9.193e-05,2]
[323753722,1714241432174,-2560.77068631,9.193e-05,2]
[323753723,1714241432194,-368.97686037,9.193e-05,2]
[323753724,1714241432205,-169.32,9.202e-05,2]
[323753725,1714241432216,-481.72,9.217e-05,2]
[323753726,1714241432226,-966.77,9.257e-05,2]
[323753727,1714241432234,-3150.74542477,9.26e-05,2]
[323753743,1714241437641,-4722.16457523,9.26e-05,2]
[323753744,1714241437650,-1577.88,9.294e-05,2]
[323753745,1714241437659,-200.0,9.304e-05,2]
[323753746,1714241437668,-852.26,9.354e-05,2]
[323753747,1714241437678,-250.0,9.371e-05,2]
[323753748,1714241437687,-489.91,9.382e-05,2]
[323753749,1714241437697,-278.47,9.382e-05,2]
[323753750,1714241437706,-165.15,9.452e-05,2]
[323753751,1714241437718,-156.3,9.479e-05,2]
[323753752,1714241437728,-156.3,9.526e-05,2]
[323753753,1714241437738,-154.74,9.604e-05,2]
[323753754,1714241437747,-1006.31,9.617e-05,2]
[323753755,1714241437757,-320.25027245,9.669e-05,2]
[323753756,1714241437766,-3876.51,9.67e-05,2]
[323753757,1714241437776,-453.95,9.67e-05,2]
[323753758,1714241437786,-150.99,9.67e-05,2]
[323753759,1714241437795,-191.01,9.715e-05,2]
[323753760,1714241437806,-3125.77036402,9.988e-05,2]
[323753761,1714241437815,-150.99,9.988e-05,2]
[323753762,1714241437824,-3167.18827739,0.0001,2]
[323753763,1714241437834,-207.95800123,0.0001,2]
[323753764,1714241437843,-323.99205487,0.0001,2]
[323753765,1714241437851,-155.0,0.00010227,2]
[323753766,1714241437861,-154.74,0.00010342,2]
[323753767,1714241437870,-481.72,0.00010369,2]
[323753768,1714241437879,-656.89,0.00010433,2]
[323753769,1714241437888,-191.01,0.00010463,2]
[323753770,1714241437899,-400.0,0.000106,3]
[323753771,1714241437909,-179.73027073,0.0001063,2]
[323753772,1714241437918,-179.73027073,0.0001063,2]
[323753773,1714241437927,-150.0,0.0001063,2]
[323753774,1714241437937,-150.0,0.0001063,2]
[323753777,1714241437947,-150.0,0.0001063,2]
[323753781,1714241437956,-150.0,0.0001063,2]
[323753782,1714241437968,-150.0,0.0001063,2]
[323753784,1714241437977,-150.0,0.0001063,2]
[323753785,1714241437987,-150.0,0.0001063,2]
[323753786,1714241437997,-150.0,0.0001063,2]
[323753787,1714241438007,-150.0,0.0001063,2]
[323753788,1714241438017,-150.0,0.0001063,2]
[323753790,1714241438026,-150.0,0.0001063,2]
[323753791,1714241438035,-150.0,0.0001063,2]
[323753792,1714241438045,-150.0,0.0001063,2]
[323753793,1714241438054,-150.0,0.0001063,2]
[323753794,1714241438063,-150.0,0.0001063,2]
[323753795,1714241438073,-150.0,0.0001063,2]
[323753796,1714241438082,-150.0,0.0001063,2]
[323753797,1714241438091,-150.0,0.0001063,2]
[323753798,1714241438101,-150.0,0.0001063,2]
[323753799,1714241438110,-150.0,0.0001063,2]
[323753800,1714241438119,-150.0,0.0001063,2]
[323753802,1714241438128,-150.0,0.0001063,2]
[323753803,1714241438137,-284.84998968,0.0001063,2]
[323753804,1714241438147,-40000.00000001,0.0001063,2]
[323753805,1714241438156,-900.0,0.000107,3]
[323753806,1714241438166,-169.32,0.00010735,2]
[323753807,1714241438176,-1400.0,0.000108,3]
[323753808,1714241438185,-155.0,0.000109,2]
[323753809,1714241438195,-1900.0,0.000109,3]
[323753810,1714241438204,-608.47881879,0.00010997,2]
[323753811,1714241438215,-686254.17384692,0.00010999,2]
[323753813,1714241438224,-64037.53481015,0.00011,2]
[323753814,1714241438233,-348.96034067,0.00011044,2]
[323753816,1714241438242,-154.74,0.00011081,2]
[323753818,1714241438251,-1442.02260317,0.000111,2]
[323753820,1714241438260,-3334.9493,0.00011177,2]
[323753821,1714241438270,-155.0,0.00011178,2]
[323753822,1714241438279,-191.01,0.00011211,2]
[323753823,1714241438290,-442.89002814,0.00011266,2]
[323753824,1714241438299,-243.61400174,0.00011266,2]
[323753825,1714241438309,-243.61400173,0.00011269,2]
[323753826,1714241438319,-442.89002812,0.00011272,2]
[323753827,1714241438329,-243.61400173,0.00011272,2]
[323753828,1714241438338,-2996.39747344,0.00011275,2]
[323753829,1714241438348,-332.99274862,0.00011275,2]
[323753830,1714241438358,-4431.16005714,0.00011275,2]
[323753831,1714241438368,-243.61400173,0.00011275,2]
[323753832,1714241438378,-363.2194364,0.00011276,2]
[323753833,1714241438388,-161.28050548,0.00011276,2]
[323753834,1714241438397,-155.24595245,0.00011276,2]
[323753835,1714241438406,-236.68016624,0.00011276,2]
[323753836,1714241438416,-155.18518954,0.00011276,2]
[323753837,1714241438425,-155.2737892,0.00011276,2]
[323753838,1714241438434,-5546.56888049,0.00011276,2]
[323753839,1714241438444,-279.02472781,0.00011278,2]
[323753840,1714241438453,-24281.28219568,0.00011278,2]
[323753841,1714241438462,-163.0574458,0.00011278,2]
[323753842,1714241438473,-168.26224938,0.00011278,2]
[323753843,1714241438483,-442.89002812,0.00011278,2]
[323753844,1714241438492,-190.66798988,0.00011278,2]
[323753845,1714241438502,-449.20547232,0.00011278,2]
[323753846,1714241438511,-397.83315428,0.00011278,2]
[323753847,1714241438520,-243.61400173,0.00011278,2]
[323753848,1714241438530,-1991.54137924,0.00011278,2]
[323753849,1714241438538,-188.1428878,0.00011278,2]
[323753850,1714241438548,-576.012639,0.00011284,2]
[323753851,1714241438557,-396.0736066,0.00011351,2]
[323753852,1714241438567,-194.40604489,0.00011351,2]
[323753853,1714241438576,-3585.05138794,0.00011353,2]
[323753854,1714241438585,-162.13441227,0.00011363,2]
[323753855,1714241438595,-370.0983265,0.00011363,2]
[323753856,1714241438604,-1060.34127333,0.00011363,2]
[323753857,1714241438613,-3454.43853573,0.00011363,2]
[323753858,1714241438623,-191.6052752,0.00011365,2]
[323753859,1714241438634,-118228.93843186,0.00011366,2]
[323753860,1714241438644,-635.11,0.00011366,2]
[323753861,1714241438655,-215.83533507,0.00011367,2]
[323753862,1714241438664,-344899.42247419,0.00011368,2]
[323753863,1714241438677,-414.67216582,0.00011368,2]
[323753864,1714241438708,-209854.25784495,0.00011368,2]
[323753865,1714241438723,-1585.32783418,0.00011368,2]
[323753866,1714241438733,-2430.64389274,0.00011368,2]
[323753887,1714241439793,-752.51286632,9.057e-05,2]
[323753888,1714241439805,-1265.23521005,9.057e-05,2]
[323753889,1714241439814,-155.0,0.00010997,2]
[323753890,1714241439824,-283.50890985,0.00011368,2]